bitfinex-derivatives/quotes_ETHF0:USTF0_20240905
["timestamp","ask_amount","ask_price","bid_price","bid_amount"]
[1725546967273,0.41634,2402.0,2401.8,0.00625156]
[1725546967477,0.41634,2402.0,2401.8,3.21405156]
[1725546967478,0.41635,2402.0,2401.8,3.21405156]
[1725546967877,0.41635,2401.9,2401.8,3.21405156]
[1725546968281,4.57955,2401.9,2401.8,0.00625156]
[1725546971286,11.62044,2401.9,2401.8,0.00625156]
[1725546971488,18.66824,2401.9,2401.8,1.56e-06]
[1725546972586,19.70913,2401.9,2401.8,1.56e-06]
[1725546975883,1.45761,2401.3,2401.2,3.2078]
[1725546976387,0.41656,2400.7,2400.6,4.104]
[1725546976579,0.41662,2400.4,2400.2,2.276]
[1725546976775,1.04132,2400.9,2400.2,2.69265]
[1725546976776,0.00625156,2400.5,2400.2,2.69265]
[1725546976983,0.42285156,2400.5,2400.4,3.2078]
[1725546977181,0.42285156,2400.5,2400.2,2.276]
[1725546977583,0.41663,2400.3,2400.2,2.276]
[1725546978087,0.41662,2400.4,2400.2,2.276]
[1725546978287,0.41663,2400.3,2400.2,2.276]
[1725546979185,0.41662,2400.4,2400.2,2.276]
[1725546979381,0.00625156,2400.5,2400.2,2.276]
[1725546979583,0.00625156,2400.5,2400.4,3.2078]
[1725546981081,0.00625156,2400.5,2400.4,3.62441]
[1725546981282,0.00625156,2400.5,2400.4,7.79001]
[1725546981691,0.00625156,2400.5,2400.4,9.6324]
[1725546981983,0.00625156,2400.5,2400.4,10.04901]
[1725546982484,0.00625156,2400.5,2400.4,16.04901]
[1725546983688,0.41652,2401.0,2400.8,0.41653]
[1725546983889,0.41652,2401.0,2400.9,4.5811]
[1725546984307,0.4165,2401.1,2400.9,4.5811]
[1725546984482,5.765,2401.5,2401.1,0.41648]
[1725546984483,0.00625156,2401.2,2401.1,0.41648]
[1725546984786,0.00625156,2401.2,2401.1,3.62428]
[1725546984989,0.00625156,2401.2,2401.1,7.46428]
[1725546985384,0.00625156,2401.2,2401.1,17.62908]
[1725546986786,0.42272156,2401.2,2401.1,3.2078]
[1725546987290,1.45779,2401.0,2400.9,4.5811]
[1725546987486,0.41658,2400.6,2400.5,3.2078]
[1725546987689,0.41658,2400.6,2400.5,7.6557]
[1725546987888,0.41657,2400.7,2400.5,7.6557]
[1725546988081,1.04134,2400.9,2400.5,7.6557]
[1725546988285,0.41658,2400.6,2400.5,7.6557]
[1725546988691,1.45803,2400.6,2400.5,4.4479]
[1725546988995,0.41658,2400.6,2400.5,4.4479]
[1725546989693,1.45803,2400.6,2400.2,3.2078]
[1725546989894,0.41663,2400.3,2400.2,7.6703]
[1725546990087,0.41662,2400.4,2400.2,7.6703]
[1725546990284,3.2078,2400.8,2400.2,7.6703]
[1725546990487,0.41663,2400.4,2400.2,7.6703]
[1725546990691,0.4166,2400.5,2400.2,7.6703]
[1725546990887,0.41658,2400.6,2400.2,7.6703]
[1725546991098,1.04132,2400.9,2400.2,11.92694]
[1725546991300,0.4166,2400.5,2400.2,11.5103]
[1725546991896,0.41661,2400.5,2400.2,7.6703]
[1725546992092,0.41661,2400.5,2400.2,8.08695]
[1725546992295,0.41661,2400.5,2400.2,7.6703]
[1725546992789,1.04137,2400.8,2400.2,7.6703]
[1725546992992,0.41662,2400.4,2400.2,7.6703]
[1725546993195,0.41663,2400.3,2400.2,7.6703]
[1725546993595,0.41662,2400.4,2400.2,7.6703]
[1725546993795,0.4166,2400.5,2400.2,8.08694]
[1725546993994,0.41662,2400.4,2400.2,7.6703]
[1725546994595,0.41661,2400.4,2400.2,7.6703]
[1725546994794,0.4166,2400.5,2400.2,8.08694]
[1725546995096,0.41659,2400.6,2400.3,0.41662]
[1725546995297,1.04137,2400.8,2400.2,11.5103]
[1725546995498,0.4166,2400.5,2400.3,0.41663]
[1725546995797,0.41662,2400.4,2400.2,11.5103]
[1725546995994,1.04141,2400.7,2400.2,11.5103]
[1725546996200,0.41661,2400.5,2400.3,0.41663]
[1725546996591,1.04141,2400.7,2400.2,7.6703]
[1725546996993,0.41661,2400.4,2400.2,8.08694]
[1725546997193,0.41661,2400.5,2400.2,8.08694]
[1725546997592,0.41661,2400.4,2400.2,8.08694]
[1725546998099,0.4166,2400.5,2400.3,0.41663]
[1725546998294,0.4166,2400.5,2400.2,7.6703]
[1725546998494,0.41662,2400.4,2400.2,8.08694]
[1725546998690,1.04145,2400.7,2400.2,7.6703]
[1725546998991,0.41663,2400.4,2400.2,7.6703]
[1725546999193,1.04148,2400.6,2400.2,7.6703]
[1725546999398,1.04148,2400.6,2400.2,5.4743]
[1725546999399,1.45821,2400.3,2400.2,5.4743]
[1725547000000,0.41663,2400.3,2400.2,5.4743]
[1725547002503,0.41662,2400.4,2400.2,5.4743]
[1725547002696,6.06897,2400.8,2400.2,5.4743]
[1725547002899,0.41659,2400.6,2400.2,8.77094]
[1725547003098,2.1476,2400.8,2400.2,10.5563]
[1725547003297,0.41659,2400.6,2400.4,2.88]
[1725547003596,0.41659,2400.6,2400.5,2.2109]
[1725547003801,0.41658,2400.6,2400.5,2.2109]
[1725547004001,0.41657,2400.7,2400.5,2.2109]
[1725547004205,0.41658,2400.6,2400.5,2.2109]
[1725547004508,0.41657,2400.7,2400.5,2.2109]
[1725547004708,0.41656,2400.7,2400.5,2.2109]
[1725547005005,2.1847,2400.9,2400.4,3.2078]
[1725547005197,0.4166,2400.5,2400.4,3.2078]
[1725547005400,1.04146,2400.6,2400.2,4.6112]
[1725547005401,0.41663,2400.3,2400.2,4.6112]
[1725547005802,0.41662,2400.4,2400.2,4.6112]
[1725547006305,0.41663,2400.3,2400.2,4.6112]
[1725547006606,0.41662,2400.4,2400.2,4.6112]
[1725547006817,0.41662,2400.4,2400.2,2.2665]
[1725547007005,0.41663,2400.4,2400.2,4.6112]
[1725547007204,0.41663,2400.3,2400.2,4.6112]
[1725547007608,0.41665,2400.2,2400.1,0.00625156]
[1725547007811,1.04156,2400.4,2400.1,0.42291156]
[1725547007812,0.41662,2400.4,2400.1,0.42291156]
[1725547008004,0.4166,2400.5,2400.2,0.41664]
[1725547008204,3.22605,2400.9,2400.3,3.2078]
[1725547008506,0.41661,2400.4,2400.3,3.2078]
[1725547008712,1.45815,2400.4,2400.3,3.2078]
[1725547008908,1.45815,2400.4,2400.1,0.00625156]
[1725547008909,0.41665,2400.2,2400.1,0.00625156]
[1725547010313,0.41664,2400.3,2400.1,2.88625156]
[1725547010617,0.4166,2400.5,2400.3,0.41662]
[1725547011110,0.41659,2400.6,2400.3,0.41662]
[1725547011310,0.4166,2400.5,2400.3,0.41662]
[1725547012013,0.4166,2400.5,2400.2,0.41663]
[1725547012207,0.4166,2400.5,2400.3,0.41663]
[1725547012613,0.41659,2400.6,2400.4,0.41661]
[1725547012910,0.41658,2400.6,2400.4,3.62441]
[1725547013110,1.04139,2400.8,2400.4,3.62441]
[1725547013111,1.04139,2400.8,2400.5,4.5157]
[1725547013311,0.41658,2400.6,2400.5,4.5157]
[1725547014013,5.52094,2400.9,2400.5,4.93229]
[1725547014217,0.41658,2400.7,2400.5,4.93229]
[1725547014416,0.41658,2400.6,2400.5,4.5157]
[1725547015114,0.41658,2400.6,2400.5,4.9323]
[1725547015316,0.41658,2400.6,2400.5,4.5157]
[1725547015616,0.41658,2400.6,2400.5,4.9323]
[1725547015811,1.04138,2400.8,2400.5,4.9323]
[1725547016012,1.04138,2400.8,2400.5,4.5157]
[1725547016314,1.04138,2400.8,2400.5,4.93229]
[1725547016816,0.41656,2400.7,2400.5,4.93229]
[1725547017007,0.41658,2400.6,2400.5,4.5157]
[1725547017207,0.41657,2400.7,2400.5,4.93229]
[1725547017412,0.41656,2400.8,2400.6,0.41657]
[1725547017712,0.41656,2400.7,2400.5,4.93228]
[1725547018107,0.41658,2400.6,2400.5,4.93228]
[1725547018614,0.41657,2400.7,2400.5,4.93228]
[1725547018815,3.37613,2400.9,2400.5,4.93228]
[1725547019015,0.41658,2400.6,2400.5,4.93228]
[1725547020217,0.41657,2400.7,2400.6,0.41657]
[1725547020819,0.41657,2400.7,2400.1,3.21405156]
[1725547020820,0.41665,2400.2,2400.1,3.21405156]
[1725547021015,1.45828,2400.2,2400.1,0.00625156]
[1725547021519,0.41665,2400.2,2400.1,0.00625156]
[1725547022813,6.0878,2401.1,2400.1,7.05265156]
[1725547023019,0.41661,2400.5,2400.3,6.0878]
[1725547023211,0.41661,2400.5,2400.3,3.2078]
[1725547023415,2.2233,2400.8,2400.3,3.2078]
[1725547023416,0.41659,2400.6,2400.3,3.2078]
[1725547023612,0.41659,2400.6,2400.3,3.62441]
[1725547023815,2.2233,2400.8,2400.4,2.2331]
[1725547023816,0.41657,2400.7,2400.4,2.2331]
[1725547024016,2.63985,2400.8,2400.5,2.61039]
[1725547024212,7.48,2401.1,2400.6,3.2078]
[1725547024418,0.41654,2400.8,2400.6,3.2078]
[1725547025014,0.41657,2400.7,2400.5,2.1938]
[1725547025326,0.00625156,2401.2,2400.6,3.2078]
[1725547025510,0.42274156,2401.2,2401.0,3.2078]
[1725547025818,0.42274156,2401.2,2401.0,7.7762]
[1725547026019,0.41649,2401.1,2401.0,7.7762]
[1725547026227,4.17105156,2401.2,2400.5,6.0878]
[1725547026521,0.41653,2400.9,2400.5,7.4484]
[1725547026717,2.69532,2401.0,2400.5,7.86499]
[1725547026928,2.69532,2401.0,2400.7,3.2078]
[1725547027111,0.41653,2400.9,2400.7,3.2078]
[1725547027417,0.41654,2400.9,2400.7,3.2078]
[1725547027624,0.41654,2400.8,2400.5,7.4484]
[1725547028121,2.2788,2401.0,2400.5,4.5684]
[1725547028322,0.41655,2400.8,2400.6,3.2078]
[1725547028519,0.41655,2400.8,2400.5,7.4484]
[1725547028917,0.41654,2400.9,2400.6,3.2078]
[1725547029118,2.2788,2401.0,2400.7,2.88]
[1725547029119,2.69532,2401.0,2400.7,2.88]
[1725547029621,0.4165,2401.1,2400.7,3.29656]
[1725547029919,0.4165,2401.1,2400.6,3.2078]
[1725547029920,0.41654,2400.8,2400.6,3.2078]
[1725547030123,0.41656,2400.8,2400.6,3.2078]
[1725547030326,0.41656,2400.8,2400.5,4.5684]
[1725547030623,0.41656,2400.8,2400.5,4.98499]
[1725547030624,0.41654,2400.8,2400.5,4.98499]
[1725547031225,0.41654,2400.9,2400.5,4.98499]
[1725547031417,0.41654,2400.9,2400.6,3.62438]
[1725547031617,2.3597,2401.1,2400.6,3.62438]
[1725547031618,2.3597,2401.1,2400.6,3.2078]
[1725547031821,2.3597,2401.1,2400.6,6.0878]
[1725547032118,0.4165,2401.1,2400.9,3.2078]
[1725547032325,0.4165,2401.1,2401.0,4.5569]
[1725547032526,0.00625156,2401.2,2401.1,0.41649]
[1725547032720,0.00625156,2401.2,2401.1,4.58129]
[1725547033022,0.00625156,2401.2,2401.1,10.58129]
[1725547033232,5.42270667,2402.1,2401.7,0.41638]
[1725547033433,0.41631,2402.2,2401.9,6.0878]
[1725547033721,0.41631,2402.2,2402.0,2.3539]
[1725547033922,0.41632,2402.1,2402.0,2.3539]
[1725547034721,0.41634,2402.0,2401.8,0.00625156]
[1725547035027,0.00625156,2402.3,2401.8,0.00625156]
[1725547035028,5.12655156,2402.3,2401.8,0.00625156]
[1725547035427,0.41635,2401.9,2401.8,0.00625156]
[1725547035924,1.04076,2402.2,2401.8,0.00625156]
[1725547035925,0.41634,2402.0,2401.8,0.00625156]
[1725547036118,0.41635,2401.9,2401.8,0.00625156]
[1725547036315,0.41635,2402.0,2401.8,0.00625156]
[1725547036721,2.24655156,2402.3,2401.8,3.21405156]
[1725547036923,0.00625156,2402.3,2401.9,0.41635]
[1725547037122,0.00625156,2402.3,2402.2,4.2563]
[1725547037518,0.00625156,2402.3,2402.2,14.9941]
[1725547038733,0.42253156,2402.3,2402.2,4.4148]
[1725547039032,0.00625156,2402.3,2402.2,8.9935]
[1725547039525,0.00625156,2402.3,2402.2,14.9935]
[1725547040127,0.00625156,2402.3,2402.2,8.9935]
[1725547042722,0.00625156,2402.3,2402.2,12.8335]
[1725547042924,0.41618,2402.9,2402.8,0.4162]
[1725547043124,0.41618,2402.9,2402.8,3.624]
[1725547043325,0.41617,2403.0,2402.8,3.2078]
[1725547043532,0.41618,2402.9,2402.8,3.62399]
[1725547043927,0.41618,2402.9,2402.8,3.2078]
[1725547044430,0.41618,2402.9,2402.8,3.624]
[1725547044927,0.41618,2402.9,2402.8,3.2078]
[1725547045427,0.41618,2402.9,2402.8,3.624]
[1725547045826,0.41618,2402.9,2402.8,3.2078]
[1725547046427,0.41627,2402.4,2402.2,7.944]
[1725547046627,5.20206,2402.9,2402.3,4.524]
[1725547046628,2.3264,2402.8,2402.3,4.524]
[1725547046932,0.4162,2402.8,2402.7,0.41621]
[1725547047230,0.41621,2402.8,2402.5,3.2078]
[1725547047427,0.41619,2402.9,2402.8,0.4162]
[1725547047630,0.41619,2402.9,2402.8,3.2078]
[1725547048025,0.41618,2402.9,2402.8,2.2896]
[1725547048225,0.41618,2402.9,2402.8,5.9136]
[1725547048426,0.41618,2403.0,2402.8,5.9136]
[1725547048629,0.41618,2402.9,2402.8,5.9136]
[1725547048822,0.41618,2402.9,2402.8,5.4974]
[1725547049334,0.41618,2402.9,2402.4,3.2078]
[1725547049335,0.4162,2402.8,2402.4,3.2078]
[1725547049531,0.4162,2402.8,2402.2,2.1907]
[1725547049532,0.41628,2402.3,2402.2,2.1907]
[1725547049730,0.41628,2402.3,2402.2,5.3985]
[1725547050937,5.6194,2402.3,2402.2,3.2078]
[1725547052231,11.6194,2402.3,2402.2,3.2078]
[1725547052839,14.41092,2402.3,2401.8,0.00625156]
[1725547053133,0.41635,2402.0,2401.8,0.00625156]
[1725547053337,0.41635,2402.0,2401.8,3.21405156]
[1725547053530,0.41633,2402.1,2401.8,5.50025156]
[1725547053725,0.41634,2402.0,2401.8,5.50025156]
[1725547053928,6.7452,2402.2,2401.8,5.50025156]
[1725547053929,2.1737,2402.2,2401.8,5.50025156]
[1725547054131,2.59001,2402.2,2401.9,0.41635]
[1725547054340,2.1737,2402.2,2401.9,0.41635]
[1725547054537,2.59,2402.2,2402.1,3.2078]
[1725547055143,0.41632,2402.1,2401.8,2.29245156]
[1725547055331,2.59001,2402.2,2402.0,3.2078]
[1725547055832,0.41632,2402.1,2402.0,3.2078]
[1725547056032,2.1737,2402.2,2402.0,3.2078]
[1725547056230,2.1737,2402.2,2401.8,5.50025156]
[1725547056432,2.1737,2402.2,2401.8,3.21405156]
[1725547056433,0.41635,2401.9,2401.8,3.21405156]
[1725547056830,0.41634,2402.0,2401.8,3.21405156]
[1725547057038,0.41635,2401.9,2401.8,3.21405156]
[1725547057636,0.41635,2401.9,2401.8,0.00625156]
[1725547058735,0.41635,2401.9,2401.8,3.21405156]
[1725547058935,0.41635,2401.9,2401.8,0.00625156]
[1725547059438,0.41635,2401.9,2401.8,3.21405156]
[1725547059638,0.41635,2402.0,2401.8,3.21405156]
[1725547059842,0.41635,2402.0,2401.8,3.63041156]
[1725547060940,0.41635,2401.9,2401.8,3.21405156]
[1725547061144,0.41632,2402.1,2401.8,3.63041156]
[1725547061341,0.41635,2401.9,2401.8,3.21405156]
[1725547062641,0.41635,2401.9,2401.8,0.00625156]
[1725547063336,2.1737,2402.2,2401.8,3.63042156]
[1725547063337,0.41634,2402.0,2401.8,3.63042156]
[1725547063537,0.41635,2401.9,2401.8,3.21405156]
[1725547064150,0.41635,2401.9,2401.8,3.63042156]
[1725547064343,1.04081,2402.1,2401.8,3.63042156]
[1725547064540,0.41634,2402.0,2401.8,3.63042156]
[1725547064942,1.04081,2402.1,2401.8,3.63042156]
[1725547065746,2.1737,2402.2,2401.9,0.41634]
[1725547065941,3.2078,2403.1,2402.1,6.0878]
[1725547066143,2.1726,2402.7,2402.3,2.88]
[1725547066345,2.58882,2402.7,2402.4,3.62405]
[1725547066541,4.6566,2403.0,2402.7,0.41621]
[1725547066542,0.41617,2403.0,2402.7,0.41621]
[1725547066862,1.30082081,2403.3,2402.6,0.41622]
[1725547066863,0.41618,2402.9,2402.6,0.41622]
[1725547067354,0.4162,2402.8,2402.5,5.0442]
[1725547067648,2.88,2403.0,2402.4,3.2078]
[1725547067850,0.41624,2402.6,2402.4,3.2078]
[1725547068041,2.88,2403.0,2402.4,3.2078]
[1725547068243,0.4162,2402.8,2402.4,3.62406]
[1725547069253,0.41621,2402.7,2402.4,3.62406]
[1725547069644,0.41621,2402.7,2402.5,2.2683]
[1725547070141,0.4162,2402.8,2402.5,2.2683]
[1725547070945,0.41622,2402.7,2402.5,2.2683]
[1725547071549,0.41623,2402.6,2402.5,2.2683]
[1725547071750,1.04041,2403.0,2402.5,2.2683]
[1725547071751,0.41622,2402.7,2402.5,2.2683]
[1725547072454,0.41623,2402.6,2402.5,2.2683]
[1725547073149,2.201,2402.9,2402.5,2.2683]
[1725547073352,0.41621,2402.7,2402.5,2.2683]
[1725547074057,2.201,2402.9,2402.5,2.68455]
[1725547074058,0.41621,2402.8,2402.5,2.68455]
[1725547074250,2.1726,2403.1,2402.7,3.2078]
[1725547074441,2.1726,2403.1,2402.8,2.1623]
[1725547074442,0.41619,2402.9,2402.8,2.1623]
[1725547074646,2.1726,2403.1,2402.5,2.2683]
[1725547074647,0.41622,2402.7,2402.5,5.1483]
[1725547074848,0.41623,2402.6,2402.5,2.2683]
[1725547075156,0.41625,2402.5,2402.4,3.2078]
[1725547075645,1.04052,2402.8,2402.4,3.2078]
[1725547075841,0.41623,2402.6,2402.4,3.2078]
[1725547076242,0.41623,2402.7,2402.4,3.62406]
[1725547076658,0.41623,2402.6,2402.4,3.2078]
[1725547076959,0.41623,2402.6,2402.4,3.62406]
[1725547077254,1.04043,2403.0,2402.5,2.88]
[1725547077446,1.04043,2403.0,2402.6,0.41623]
[1725547077646,0.4162,2402.8,2402.7,2.1496]
[1725547079048,0.41621,2402.7,2402.6,2.3467]
[1725547079246,1.04047,2402.9,2402.6,2.3467]
[1725547079450,0.4162,2402.8,2402.6,2.3467]
[1725547079655,0.41621,2402.7,2402.6,2.3467]
[1725547080459,0.41621,2402.8,2402.6,2.76293]
[1725547080658,0.41621,2402.7,2402.6,2.3467]
[1725547081459,0.41621,2402.8,2402.6,2.76293]
[1725547081654,0.41619,2402.9,2402.7,0.41621]
[1725547081865,0.4162,2402.8,2402.6,2.76293]
[1725547082062,0.41621,2402.8,2402.6,2.76293]
[1725547082355,0.41619,2402.9,2402.7,0.41621]
[1725547082663,2.1726,2403.1,2402.6,2.76292]
[1725547082664,0.4162,2402.8,2402.6,2.76292]
[1725547082864,0.41619,2402.9,2402.7,0.41621]
[1725547083064,0.41615,2403.1,2402.7,6.0878]
[1725547083253,6.58107,2403.4,2403.0,0.41616]
[1725547083456,0.41614,2403.2,2403.1,4.6186]
[1725547084260,5.5408,2403.4,2403.1,4.6186]
[1725547084459,5.5408,2403.4,2403.1,5.03474]
[1725547084460,0.41613,2403.3,2403.1,5.03474]
[1725547084662,0.4161,2403.4,2403.1,7.4986]
[1725547084854,0.41609,2403.5,2403.3,0.4161]
[1725547085052,0.41609,2403.5,2403.3,6.5039]
[1725547086065,0.41605,2403.7,2403.3,6.0878]
[1725547086358,0.41605,2403.7,2403.6,3.2078]
[1725547086762,4.57605,2403.7,2403.6,3.2078]
[1725547087157,6.78545,2403.7,2403.6,3.2078]
[1725547087759,7.82556,2403.7,2403.6,3.2078]
[1725547088367,14.86567,2403.7,2403.6,3.2078]
[1725547088961,8.86567,2403.7,2403.6,3.2078]
[1725547090365,3.66556,2403.7,2403.6,3.2078]
[1725547091157,1.45616,2403.7,2403.6,3.2078]
[1725547091956,0.41605,2403.7,2403.6,3.2078]
[1725547094757,0.41604,2403.8,2403.6,3.2078]
[1725547094957,3.2952,2404.0,2403.6,3.2078]
[1725547094958,0.41604,2403.7,2403.6,3.2078]
[1725547096071,0.41614,2403.2,2403.0,4.104]
[1725547096272,0.41614,2403.2,2403.0,4.4116]
[1725547096469,0.41612,2403.3,2403.0,7.70776]
[1725547096675,0.41612,2403.3,2403.1,0.41614]
[1725547096880,0.4161,2403.4,2403.1,6.0878]
[1725547097080,0.4161,2403.4,2403.2,0.41613]
[1725547097285,0.41607,2403.6,2403.3,3.2961]
[1725547097483,0.41607,2403.6,2403.4,2.2129]
[1725547097783,0.41607,2403.6,2403.5,2.1987]
[1725547098485,0.41606,2403.6,2403.5,2.1987]
[1725547098879,2.1941,2403.8,2403.5,2.1987]
[1725547099073,0.41603,2403.8,2403.5,5.49476]
[1725547099384,0.41603,2403.8,2403.5,5.0787]
[1725547099593,2.2775,2404.1,2403.7,6.0878]
[1725547099773,0.41601,2403.9,2403.7,2.88]
[1725547099973,0.41601,2403.9,2403.6,0.41605]
[1725547100178,1.03992,2404.2,2403.7,3.29604]
[1725547100179,0.416,2404.0,2403.7,3.29604]
[1725547100379,0.416,2404.0,2403.7,6.50384]
[1725547100579,2.2775,2404.3,2403.9,2.88]
[1725547100780,0.41594,2404.3,2404.2,2.88]
[1725547100979,0.41594,2404.3,2404.0,8.3113]
[1725547101286,0.41593,2404.4,2404.0,8.72728]
[1725547101583,0.4159,2404.6,2404.2,3.29595]
[1725547101789,4.87374557,2404.8,2404.2,2.8862383]
[1725547101790,0.41591,2404.5,2404.2,2.8862383]
[1725547101975,0.41589,2404.6,2404.3,2.3662]
[1725547102281,0.4159,2404.5,2404.3,2.3662]
[1725547102675,0.41591,2404.5,2404.3,2.3662]
[1725547102880,0.4159,2404.6,2404.3,2.3662]
[1725547103580,7.16104557,2404.8,2404.3,2.3662]
[1725547103782,0.41588,2404.7,2404.3,2.3662]
[1725547103985,3.2078,2404.9,2404.6,2.88]
[1725547104178,2.70307,2405.3,2404.8,3.29584]
[1725547104389,5.4106,2405.5,2405.1,2.88]
[1725547104390,0.41576,2405.4,2405.1,2.88]
[1725547104795,0.41577,2405.3,2405.1,2.88]
[1725547104991,3.2078,2405.5,2405.1,2.88]
[1725547104992,0.41578,2405.2,2405.1,2.88]
[1725547105296,0.41578,2405.2,2404.9,8.2859]
[1725547105697,3.2078,2405.5,2405.1,2.88]
[1725547105997,0.41576,2405.4,2405.1,2.88]
[1725547106297,1.03946,2405.2,2404.9,2.1981]
[1725547106496,2.88,2405.3,2404.7,2.2135]
[1725547106497,0.41583,2405.0,2404.7,2.2135]
[1725547106700,0.41583,2405.0,2404.7,5.0935]
[1725547107100,0.41585,2404.8,2404.7,2.2135]
[1725547107290,0.41585,2404.8,2404.6,5.4059]
[1725547107291,0.41586,2404.8,2404.6,2.1981]
[1725547107496,0.41584,2404.9,2404.6,2.1981]
[1725547107700,3.34556,2405.2,2404.7,2.88]
[1725547107701,0.41585,2404.8,2404.7,2.88]
[1725547107893,0.41585,2404.9,2404.7,2.88]
[1725547108298,2.2957,2405.3,2404.7,6.0878]
[1725547108500,0.41581,2405.1,2404.7,6.0878]
[1725547108695,0.41582,2405.0,2404.7,6.0878]
[1725547108897,0.41583,2404.9,2404.7,2.88]
[1725547109098,0.41583,2404.9,2404.8,3.2078]
[1725547109400,0.41583,2404.9,2404.7,2.88]
[1725547109992,0.41585,2404.8,2404.7,2.88]
[1725547110404,0.41584,2404.9,2404.7,2.88]
[1725547110700,1.03946,2405.2,2404.7,2.88]
[1725547111199,0.41581,2405.1,2404.9,2.88]
[1725547111503,0.41581,2405.1,2405.0,2.2403]
[1725547111997,1.03955,2405.0,2404.5,5.0426]
[1725547112194,0.41589,2404.6,2404.5,7.2829]
[1725547112596,1.45561,2404.6,2404.5,2.2403]
[1725547112802,0.41594,2404.3,2404.2,0.0062383]
[1725547112996,0.41594,2404.3,2404.2,2.2465383]
[1725547113804,1.45579,2404.3,2404.2,0.0062383]
[1725547116806,5.61499,2404.3,2404.2,0.0062383]
[1725547117007,7.96099,2404.3,2404.2,0.0062383]
[1725547117195,9.00084,2404.3,2404.2,0.0062383]
[1725547117401,1.45615,2403.7,2403.6,4.104]
[1725547117596,0.41608,2403.5,2403.4,3.2078]
[1725547119193,0.41607,2403.6,2403.4,3.2078]
[1725547119398,0.0061941,2403.7,2403.4,3.2078]
[1725547119399,0.41598,2404.1,2403.5,7.0408]
[1725547119606,0.41596,2404.2,2403.9,2.88]
[1725547119808,2.2806,2404.4,2404.0,7.7912]
[1725547119995,0.41596,2404.2,2404.0,4.5834]
[1725547120504,0.41597,2404.1,2404.0,4.5834]
[1725547121301,0.41597,2404.2,2404.0,4.5834]
[1725547122105,0.41597,2404.1,2404.0,2.2943]
[1725547124006,0.416,2404.0,2403.7,5.46882883]
[1725547124604,0.416,2404.0,2403.7,5.88486883]
[1725547125011,0.41598,2404.1,2403.7,5.88486883]
[1725547125306,4.24767,2404.3,2403.7,5.46882883]
[1725547125307,1.03987,2404.3,2403.7,5.46882883]
[1725547125513,0.416,2404.0,2403.7,5.88486883]
[1725547125808,0.41601,2403.9,2403.7,5.46882883]
[1725547126011,0.41599,2404.1,2403.8,0.41602]
[1725547126212,0.41599,2404.0,2403.8,0.41602]
[1725547126412,0.41599,2404.1,2403.8,0.41602]
[1725547126612,3.32042,2404.4,2404.0,3.62378]
[1725547126806,0.41594,2404.3,2404.2,2.88]
[1725547127002,0.41596,2404.2,2404.0,6.0878]
[1725547127209,0.41596,2404.2,2404.1,2.1653]
[1725547127915,0.41597,2404.1,2404.0,3.2078]
[1725547128312,1.03991,2404.2,2403.8,3.29602]
[1725547128513,1.03991,2404.2,2403.8,6.50382]
[1725547128815,0.41599,2404.0,2403.8,6.50382]
[1725547129015,0.41601,2403.9,2403.8,6.0878]
[1725547129209,0.416,2404.0,2403.7,2.1653]
[1725547129411,1.03986,2404.3,2403.8,6.0878]
[1725547129716,0.41596,2404.2,2404.0,3.29598]
[1725547129909,0.41596,2404.2,2404.1,2.2483]
[1725547130105,0.41596,2404.2,2404.1,4.4581]
[1725547132215,0.41596,2404.2,2404.1,2.2098]
[1725547133211,0.41599,2404.0,2403.8,6.50382]
[1725547133410,0.41597,2404.2,2403.9,0.41599]
[1725547133715,0.41597,2404.2,2404.0,3.29599]
[1725547134209,0.41597,2404.1,2404.0,2.88]
[1725547134712,0.41597,2404.1,2404.0,9.1915]
[1725547135215,0.41597,2404.2,2404.0,9.60748]
[1725547135418,1.03986,2404.3,2404.0,5.44748]
[1725547135617,0.41597,2404.1,2404.0,5.0315]
[1725547136011,0.41597,2404.1,2404.0,9.1915]
[1725547138413,0.41597,2404.1,2404.0,9.60749]
[1725547138609,0.41597,2404.1,2404.0,9.1915]
[1725547139416,0.41597,2404.1,2404.0,9.60749]
[1725547139715,0.41597,2404.1,2404.0,9.1915]
[1725547139906,1.45591,2404.1,2404.0,6.3115]
[1725547140110,1.45603,2403.9,2403.8,3.2078]
[1725547140312,0.41602,2403.8,2403.7,4.4767]
[1725547140515,0.41602,2403.8,2403.7,8.10054]
[1725547140714,1.04007,2403.8,2403.4,2.88]
[1725547140919,5.1348,2404.1,2403.3,7.6609]
[1725547140920,0.41609,2403.4,2403.3,7.6609]
[1725547141218,0.41609,2403.5,2403.3,7.6609]
[1725547141417,0.41609,2403.5,2403.3,8.07701]
[1725547141821,0.41609,2403.5,2403.3,7.6609]
[1725547142117,4.4923,2403.7,2403.4,3.29609]
[1725547142318,1.03982,2404.4,2403.6,6.0878]
[1725547142514,0.41595,2404.2,2404.1,2.88]
[1725547143314,0.41595,2404.2,2404.1,2.2519]
[1725547144621,2.272,2404.4,2404.1,5.54786]
[1725547144918,0.41594,2404.3,2404.1,5.1319]
[1725547145217,0.41595,2404.2,2404.1,5.1319]
[1725547146224,0.41594,2404.3,2404.1,5.1319]
[1725547146730,0.41599,2404.0,2403.9,6.0878]
[1725547146917,2.2475,2404.3,2403.8,4.6541]
[1725547147219,0.41597,2404.2,2404.0,3.2078]
[1725547147517,0.41597,2404.1,2403.9,3.296]
[1725547148217,0.41599,2404.0,2403.9,2.88]
[1725547148413,0.41598,2404.1,2403.9,3.296]
[1725547148915,3.28737,2404.3,2404.0,0.41599]